[Event "Titled Tuesday Blitz November 14 Early 2023"]
[White "Skaric, Djuro"]
[Black "Martinez Ramirez, Lennis"]
[WhiteFideId "934569"]
[BlackFideId "3509079"]
[WhiteElo "2372"]
[BlackElo "2703"]
[Result "0-1"]
[Round "1"]
[TimeControl "180+1"]
[Date "2023.11.14"]
[WhiteClock "0:00:20"]
[BlackClock "0:00:03"]
[Board "137"]

1. g3 {[%clk 0:03:00]}  d5 {[%clk 0:02:59]} 2. Bg2 {[%clk 0:03:00]}  Nf6 {[%clk 0:02:58]} 3. d3 {[%clk 0:02:59]}  Nc6 {[%clk 0:02:53]} 4. h3 {[%clk 0:02:59]}  e5 {[%clk 0:02:53]} 5. Nf3 {[%clk 0:02:58]}  h6 {[%clk 0:02:48]} 6. O-O {[%clk 0:02:57]}  Be7 {[%clk 0:02:40]} 7. Nc3 {[%clk 0:02:57]}  O-O {[%clk 0:02:33]} 8. e4 {[%clk 0:02:56]}  dxe4 {[%clk 0:02:31]} 9. dxe4 {[%clk 0:02:56]}  Be6 {[%clk 0:02:29]} 10. a3 {[%clk 0:02:54]}  a5 {[%clk 0:02:19]} 11. Be3 {[%clk 0:02:53]}  Qc8 {[%clk 0:02:09]} 12. Kh2 {[%clk 0:02:52]}  Rd8 {[%clk 0:02:09]} 13. Qc1 {[%clk 0:02:52]}  b6 {[%clk 0:01:56]} 14. b3 {[%clk 0:02:40]}  Bc5 {[%clk 0:01:55]} 15. Qb2 {[%clk 0:02:39]}  Bxe3 {[%clk 0:01:50]} 16. fxe3 {[%clk 0:02:39]}  Qd7 {[%clk 0:01:32]} 17. Rf2 {[%clk 0:02:38]}  Qe7 {[%clk 0:01:32]} 18. Nh4 {[%clk 0:02:33]}  Qc5 {[%clk 0:01:16]} 19. Re1 {[%clk 0:02:33]}  Ne7 {[%clk 0:01:15]} 20. Nf5 {[%clk 0:02:30]}  Bxf5 {[%clk 0:01:02]} 21. exf5 {[%clk 0:02:30]}  Rac8 {[%clk 0:00:50]} 22. g4 {[%clk 0:02:27]}  c6 {[%clk 0:00:25]} 23. Rfe2 {[%clk 0:02:21]}  Ned5 {[%clk 0:00:25]} 24. Nxd5 {[%clk 0:02:17]}  cxd5 {[%clk 0:00:19]} 25. Qxe5 {[%clk 0:02:16]}  Qxa3 {[%clk 0:00:19]} 26. Qg3 {[%clk 0:02:12]}  Rc3 {[%clk 0:00:17]} 27. h4 {[%clk 0:02:08]}  Qd6 {[%clk 0:00:16]} 28. g5 {[%clk 0:02:07]}  Ng4+ {[%clk 0:00:16]} 29. Kh3 {[%clk 0:02:05]}  h5 {[%clk 0:00:15]} 30. Qxd6 {[%clk 0:02:00]}  Rxd6 {[%clk 0:00:16]} 31. Bf3 {[%clk 0:01:59]}  d4 {[%clk 0:00:14]} 32. Bxg4 {[%clk 0:01:59]}  hxg4+ {[%clk 0:00:14]} 33. Kxg4 {[%clk 0:01:59]}  d3 {[%clk 0:00:12]} 34. cxd3 {[%clk 0:01:58]}  Rdxd3 {[%clk 0:00:13]} 35. h5 {[%clk 0:01:56]}  Rxb3 {[%clk 0:00:13]} 36. g6 {[%clk 0:01:50]}  fxg6 {[%clk 0:00:12]} 37. hxg6 {[%clk 0:01:49]}  Kf8 {[%clk 0:00:12]} 38. Kf4 {[%clk 0:01:48]}  Ke7 {[%clk 0:00:11]} 39. e4 {[%clk 0:01:48]}  a4 {[%clk 0:00:06]} 40. Rh1 {[%clk 0:01:46]}  a3 {[%clk 0:00:06]} 41. Rh7 {[%clk 0:01:44]}  Kf8 {[%clk 0:00:04]} 42. Rh8+ {[%clk 0:01:39]}  Ke7 {[%clk 0:00:04]} 43. Rg8 {[%clk 0:01:40]}  Kd6 {[%clk 0:00:03]} 44. e5+ {[%clk 0:01:31]}  Kc5 {[%clk 0:00:03]} 45. Rc8+ {[%clk 0:01:31]}  Kb5 {[%clk 0:00:03]} 46. e6 {[%clk 0:01:31]}  Rf3+ {[%clk 0:00:03]} 47. Ke5 {[%clk 0:01:30]}  Rb2 {[%clk 0:00:03]} 48. Re1 {[%clk 0:01:28]}  Rff2 {[%clk 0:00:01]} 49. e7 {[%clk 0:01:20]}  Rfe2+ {[%clk 0:00:02]} 50. Kd6 {[%clk 0:01:20]}  Rxe1 {[%clk 0:00:02]} 51. Rc1 {[%clk 0:01:14]}  Rd2+ {[%clk 0:00:02]} 52. Kc7 {[%clk 0:01:14]}  Rxc1+ {[%clk 0:00:02]} 53. Kb8 {[%clk 0:01:13]}  Re2 {[%clk 0:00:03]} 54. f6 {[%clk 0:01:13]}  Re6 {[%clk 0:00:03]} 55. f7 {[%clk 0:01:04]}  Rxe7 {[%clk 0:00:04]} 56. f8=Q {[%clk 0:01:03]}  Rcc7 {[%clk 0:00:04]} 57. Qf1+ {[%clk 0:01:01]}  Ka5 {[%clk 0:00:04]} 58. Qf5+ {[%clk 0:01:00]}  b5 {[%clk 0:00:04]} 59. Qd5 {[%clk 0:00:43]}  Rb7+ {[%clk 0:00:04]} 60. Ka8 {[%clk 0:00:40]}  Ra7+ {[%clk 0:00:04]} 61. Kb8 {[%clk 0:00:39]}  Rad7 {[%clk 0:00:04]} 62. Qb3 {[%clk 0:00:20]}  Rd8# {[%clk 0:00:03]} 0-1


[Site "https://www.chess.com"]

[Event "Titled Tuesday Blitz November 14 Early 2023"]
[White "Danielyan, Vahe"]
[Black "Tarasova, Viktoriya"]
[WhiteFideId "13304828"]
[BlackFideId "4175840"]
[WhiteElo "2699"]
[BlackElo "2369"]
[Result "1-0"]
[Round "1"]
[TimeControl "180+1"]
[Date "2023.11.14"]
[WhiteClock "0:01:10"]
[BlackClock "0:00:00"]
[Board "138"]

1. e4 {[%clk 0:03:00]}  e5 {[%clk 0:02:59]} 2. Nc3 {[%clk 0:02:59]}  Nf6 {[%clk 0:02:59]} 3. g3 {[%clk 0:02:59]}  Nc6 {[%clk 0:02:57]} 4. Bg2 {[%clk 0:02:58]}  Bc5 {[%clk 0:02:57]} 5. Nge2 {[%clk 0:02:58]}  a6 {[%clk 0:02:56]} 6. O-O {[%clk 0:02:58]}  d6 {[%clk 0:02:55]} 7. d3 {[%clk 0:02:58]}  h6 {[%clk 0:02:55]} 8. h3 {[%clk 0:02:58]}  O-O {[%clk 0:02:54]} 9. Kh2 {[%clk 0:02:57]}  Nd4 {[%clk 0:02:50]} 10. f4 {[%clk 0:02:57]}  c6 {[%clk 0:02:44]} 11. g4 {[%clk 0:02:56]}  Nxe2 {[%clk 0:02:38]} 12. Nxe2 {[%clk 0:02:55]}  exf4 {[%clk 0:02:38]} 13. Bxf4 {[%clk 0:02:54]}  d5 {[%clk 0:02:25]} 14. e5 {[%clk 0:02:54]}  Nh7 {[%clk 0:02:25]} 15. Qd2 {[%clk 0:02:49]}  Be7 {[%clk 0:02:21]} 16. Ng3 {[%clk 0:02:44]}  Bg5 {[%clk 0:02:05]} 17. Nf5 {[%clk 0:02:43]}  Be6 {[%clk 0:02:05]} 18. Rae1 {[%clk 0:02:42]}  Bxf4+ {[%clk 0:01:39]} 19. Rxf4 {[%clk 0:02:37]}  Kh8 {[%clk 0:01:29]} 20. Ref1 {[%clk 0:02:36]}  Qc7 {[%clk 0:01:12]} 21. d4 {[%clk 0:02:14]}  f6 {[%clk 0:01:04]} 22. Nh4 {[%clk 0:02:12]}  Bf7 {[%clk 0:00:34]} 23. Rf5 {[%clk 0:02:01]}  Rae8 {[%clk 0:00:27]} 24. Qe3 {[%clk 0:01:52]}  Kg8 {[%clk 0:00:25]} 25. Kh1 {[%clk 0:01:47]}  Be6 {[%clk 0:00:18]} 26. R5f2 {[%clk 0:01:36]}  Bf7 {[%clk 0:00:18]} 27. Re1 {[%clk 0:01:25]}  c5 {[%clk 0:00:14]} 28. c3 {[%clk 0:01:24]}  cxd4 {[%clk 0:00:07]} 29. cxd4 {[%clk 0:01:25]}  Be6 {[%clk 0:00:04]} 30. Ng6 {[%clk 0:01:25]}  Rf7 {[%clk 0:00:03]} 31. Nf4 {[%clk 0:01:26]}  fxe5 {[%clk 0:00:02]} 32. Nxe6 {[%clk 0:01:21]}  Rxe6 {[%clk 0:00:02]} 33. Bxd5 {[%clk 0:01:21]}  Qd6 {[%clk 0:00:01]} 34. Bxe6 {[%clk 0:01:18]}  Qxe6 {[%clk 0:00:02]} 35. Rxf7 {[%clk 0:01:19]}  Qxf7 {[%clk 0:00:01]} 36. Qxe5 {[%clk 0:01:13]}  Qxa2 {[%clk 0:00:00]} 37. Qe6+ {[%clk 0:01:10]} 1-0


[Site "https://www.chess.com"]

[Event "Titled Tuesday Blitz November 14 Early 2023"]
[White "iJueles"]
[Black "Rozman, Levy"]
[BlackFideId "2039877"]
[WhiteElo "2369"]
[BlackElo "2698"]
[Result "0-1"]
[Round "1"]
[TimeControl "180+1"]
[Date "2023.11.14"]
[WhiteClock "0:00:04"]
[BlackClock "0:00:28"]
[Board "139"]

1. d4 {[%clk 0:02:44]}  g6 {[%clk 0:02:59]} 2. Nf3 {[%clk 0:02:43]}  Bg7 {[%clk 0:02:59]} 3. c4 {[%clk 0:02:42]}  d6 {[%clk 0:03:00]} 4. Nc3 {[%clk 0:02:42]}  Bg4 {[%clk 0:03:00]} 5. e4 {[%clk 0:02:40]}  Bxf3 {[%clk 0:02:55]} 6. gxf3 {[%clk 0:02:38]}  Nc6 {[%clk 0:02:56]} 7. Be3 {[%clk 0:02:37]}  e5 {[%clk 0:02:56]} 8. d5 {[%clk 0:02:33]}  Nd4 {[%clk 0:02:56]} 9. f4 {[%clk 0:02:32]}  c5 {[%clk 0:02:48]} 10. Bd3 {[%clk 0:02:10]}  Ne7 {[%clk 0:02:44]} 11. Rg1 {[%clk 0:02:07]}  Qb6 {[%clk 0:02:39]} 12. Rb1 {[%clk 0:02:02]}  Kf8 {[%clk 0:02:26]} 13. fxe5 {[%clk 0:01:49]}  dxe5 {[%clk 0:02:22]} 14. h4 {[%clk 0:01:38]}  h5 {[%clk 0:02:20]} 15. Kf1 {[%clk 0:01:25]}  Bf6 {[%clk 0:02:18]} 16. Bg5 {[%clk 0:01:24]}  Bxg5 {[%clk 0:01:56]} 17. Rxg5 {[%clk 0:01:25]}  Qf6 {[%clk 0:01:39]} 18. Ne2 {[%clk 0:01:10]}  Nf3 {[%clk 0:01:35]} 19. Rg3 {[%clk 0:01:04]}  Nxh4 {[%clk 0:01:31]} 20. Ng1 {[%clk 0:01:02]}  g5 {[%clk 0:01:25]} 21. b4 {[%clk 0:00:59]}  cxb4 {[%clk 0:01:23]} 22. Rxb4 {[%clk 0:00:55]}  b6 {[%clk 0:01:23]} 23. c5 {[%clk 0:00:50]}  bxc5 {[%clk 0:01:21]} 24. Rb7 {[%clk 0:00:50]}  Kg7 {[%clk 0:01:19]} 25. Qb3 {[%clk 0:00:46]}  Nhg6 {[%clk 0:01:17]} 26. d6 {[%clk 0:00:39]}  Qxd6 {[%clk 0:01:11]} 27. Rxg5 {[%clk 0:00:39]}  Rab8 {[%clk 0:01:07]} 28. Rxb8 {[%clk 0:00:31]}  Rxb8 {[%clk 0:01:07]} 29. Qc2 {[%clk 0:00:28]}  h4 {[%clk 0:01:07]} 30. Bc4 {[%clk 0:00:25]}  Qf6 {[%clk 0:01:03]} 31. Qd2 {[%clk 0:00:19]}  Rd8 {[%clk 0:00:59]} 32. Qe3 {[%clk 0:00:18]}  Rd4 {[%clk 0:00:58]} 33. Be2 {[%clk 0:00:16]}  Qf4 {[%clk 0:00:54]} 34. Qxf4 {[%clk 0:00:14]}  exf4 {[%clk 0:00:55]} 35. Nf3 {[%clk 0:00:13]}  Rxe4 {[%clk 0:00:55]} 36. Nxh4 {[%clk 0:00:13]}  Re5 {[%clk 0:00:54]} 37. Rxe5 {[%clk 0:00:13]}  Nxe5 {[%clk 0:00:54]} 38. Ke1 {[%clk 0:00:13]}  Kf6 {[%clk 0:00:51]} 39. f3 {[%clk 0:00:12]}  Nd5 {[%clk 0:00:50]} 40. Ng2 {[%clk 0:00:12]}  Kf5 {[%clk 0:00:46]} 41. Kf2 {[%clk 0:00:11]}  Nc3 {[%clk 0:00:46]} 42. a3 {[%clk 0:00:10]}  c4 {[%clk 0:00:44]} 43. Ne1 {[%clk 0:00:09]}  Ke6 {[%clk 0:00:39]} 44. Nc2 {[%clk 0:00:08]}  Kd5 {[%clk 0:00:39]} 45. Bf1 {[%clk 0:00:09]}  Nd3+ {[%clk 0:00:38]} 46. Kg2 {[%clk 0:00:08]}  a5 {[%clk 0:00:37]} 47. Kh3 {[%clk 0:00:08]}  Ne5 {[%clk 0:00:29]} 48. Kg2 {[%clk 0:00:07]}  Nd1 {[%clk 0:00:27]} 49. Be2 {[%clk 0:00:05]}  Ne3+ {[%clk 0:00:27]} 50. Nxe3+ {[%clk 0:00:05]}  fxe3 {[%clk 0:00:28]} 51. Kg3 {[%clk 0:00:05]}  c3 {[%clk 0:00:28]} 52. Bd1 {[%clk 0:00:04]}  e2 {[%clk 0:00:28]} 0-1


[Site "https://www.chess.com"]

[Event "Titled Tuesday Blitz November 14 Early 2023"]
[White "Ladopoulos, Dimitrios"]
[Black "Vigoa Apecheche, Yanira"]
[WhiteFideId "4239580"]
[BlackFideId "3507041"]
[WhiteElo "2697"]
[BlackElo "2366"]
[Result "1-0"]
[Round "1"]
[TimeControl "180+1"]
[Date "2023.11.14"]
[WhiteClock "0:00:20"]
[BlackClock "0:00:16"]
[Board "140"]

1. d4 {[%clk 0:02:53]}  Nf6 {[%clk 0:02:59]} 2. Nf3 {[%clk 0:02:50]}  g6 {[%clk 0:02:58]} 3. c4 {[%clk 0:02:46]}  c5 {[%clk 0:02:57]} 4. g3 {[%clk 0:02:42]}  cxd4 {[%clk 0:02:56]} 5. Nxd4 {[%clk 0:02:42]}  Nc6 {[%clk 0:02:56]} 6. Bg2 {[%clk 0:02:43]}  Bg7 {[%clk 0:02:56]} 7. O-O {[%clk 0:02:43]}  O-O {[%clk 0:02:56]} 8. Nc3 {[%clk 0:02:43]}  d6 {[%clk 0:02:56]} 9. Nxc6 {[%clk 0:02:39]}  bxc6 {[%clk 0:02:56]} 10. Bxc6 {[%clk 0:02:40]}  Bh3 {[%clk 0:02:56]} 11. Bxa8 {[%clk 0:02:36]}  Qxa8 {[%clk 0:02:57]} 12. f3 {[%clk 0:02:36]}  Bxf1 {[%clk 0:02:56]} 13. Kxf1 {[%clk 0:02:37]}  Rc8 {[%clk 0:02:36]} 14. Qd3 {[%clk 0:02:16]}  Qc6 {[%clk 0:02:30]} 15. b3 {[%clk 0:02:04]}  d5 {[%clk 0:01:13]} 16. Nxd5 {[%clk 0:01:56]}  Nxd5 {[%clk 0:01:13]} 17. cxd5 {[%clk 0:01:57]}  Qc2 {[%clk 0:01:13]} 18. Qxc2 {[%clk 0:01:53]}  Rxc2 {[%clk 0:01:13]} 19. Rb1 {[%clk 0:01:54]}  Rxa2 {[%clk 0:01:14]} 20. Be3 {[%clk 0:01:50]}  Kf8 {[%clk 0:01:12]} 21. Bc5 {[%clk 0:01:45]}  Ke8 {[%clk 0:01:11]} 22. h3 {[%clk 0:01:40]}  Kd7 {[%clk 0:01:07]} 23. e4 {[%clk 0:01:35]}  a6 {[%clk 0:00:59]} 24. g4 {[%clk 0:01:16]}  Rh2 {[%clk 0:00:58]} 25. Bg1 {[%clk 0:01:15]}  Rc2 {[%clk 0:00:53]} 26. b4 {[%clk 0:01:12]}  Rc3 {[%clk 0:00:48]} 27. Ke2 {[%clk 0:01:06]}  Rc2+ {[%clk 0:00:44]} 28. Kf1 {[%clk 0:01:06]}  Rc3 {[%clk 0:00:44]} 29. Kg2 {[%clk 0:01:00]}  Rc2+ {[%clk 0:00:44]} 30. Bf2 {[%clk 0:00:43]}  Bd4 {[%clk 0:00:36]} 31. Rf1 {[%clk 0:00:42]}  Rb2 {[%clk 0:00:37]} 32. Kg3 {[%clk 0:00:43]}  Bxf2+ {[%clk 0:00:37]} 33. Rxf2 {[%clk 0:00:44]}  Rxb4 {[%clk 0:00:37]} 34. Ra2 {[%clk 0:00:44]}  Rb6 {[%clk 0:00:37]} 35. Kf4 {[%clk 0:00:44]}  Kc7 {[%clk 0:00:36]} 36. Kg5 {[%clk 0:00:39]}  Kb7 {[%clk 0:00:36]} 37. Kh6 {[%clk 0:00:37]}  Rb3 {[%clk 0:00:36]} 38. Rf2 {[%clk 0:00:36]}  a5 {[%clk 0:00:34]} 39. Kxh7 {[%clk 0:00:24]}  a4 {[%clk 0:00:34]} 40. Kg7 {[%clk 0:00:24]}  a3 {[%clk 0:00:34]} 41. Kxf7 {[%clk 0:00:24]}  Rb2 {[%clk 0:00:29]} 42. Rf1 {[%clk 0:00:24]}  a2 {[%clk 0:00:29]} 43. Ra1 {[%clk 0:00:25]}  Kb6 {[%clk 0:00:25]} 44. Kxe7 {[%clk 0:00:25]}  Kc5 {[%clk 0:00:26]} 45. d6 {[%clk 0:00:23]}  Rb7+ {[%clk 0:00:18]} 46. Ke6 {[%clk 0:00:20]}  Rb6 {[%clk 0:00:18]} 47. e5 {[%clk 0:00:20]}  Kd4 {[%clk 0:00:17]} 48. f4 {[%clk 0:00:20]}  Ke3 {[%clk 0:00:18]} 49. f5 {[%clk 0:00:20]}  gxf5 {[%clk 0:00:18]} 50. gxf5 {[%clk 0:00:21]}  Ke4 {[%clk 0:00:18]} 51. Rxa2 {[%clk 0:00:21]}  Rb5 {[%clk 0:00:19]} 52. Ra4+ {[%clk 0:00:21]}  Kd3 {[%clk 0:00:18]} 53. f6 {[%clk 0:00:21]}  Rb8 {[%clk 0:00:16]} 54. f7 {[%clk 0:00:20]} 1-0


[Site "https://www.chess.com"]

[Event "Titled Tuesday Blitz November 14 Early 2023"]
[White "KatakuriDono"]
[Black "Nagare Kaivalya Sandip"]
[BlackFideId "25957929"]
[WhiteElo "2363"]
[BlackElo "2685"]
[Result "1/2-1/2"]
[Round "1"]
[TimeControl "180+1"]
[Date "2023.11.14"]
[WhiteClock "0:00:20"]
[BlackClock "0:00:20"]
[Board "143"]

1. d4 {[%clk 0:03:00]}  d5 {[%clk 0:02:57]} 2. c4 {[%clk 0:03:00]}  c6 {[%clk 0:02:58]} 3. Nc3 {[%clk 0:03:01]}  Nf6 {[%clk 0:02:58]} 4. cxd5 {[%clk 0:03:01]}  cxd5 {[%clk 0:02:58]} 5. Bg5 {[%clk 0:03:02]}  Nc6 {[%clk 0:02:54]} 6. Bxf6 {[%clk 0:03:01]}  exf6 {[%clk 0:02:52]} 7. e3 {[%clk 0:03:02]}  Be7 {[%clk 0:02:50]} 8. Nge2 {[%clk 0:03:02]}  O-O {[%clk 0:02:50]} 9. Nf4 {[%clk 0:03:02]}  Be6 {[%clk 0:02:50]} 10. Be2 {[%clk 0:03:00]}  Bb4 {[%clk 0:02:48]} 11. O-O {[%clk 0:03:00]}  Bxc3 {[%clk 0:02:48]} 12. bxc3 {[%clk 0:03:00]}  Na5 {[%clk 0:02:49]} 13. Rb1 {[%clk 0:02:50]}  Rc8 {[%clk 0:02:48]} 14. Qd2 {[%clk 0:02:34]}  Qc7 {[%clk 0:02:45]} 15. Rfc1 {[%clk 0:02:32]}  Rfd8 {[%clk 0:02:42]} 16. Bd3 {[%clk 0:02:30]}  a6 {[%clk 0:02:40]} 17. Qe2 {[%clk 0:02:28]}  b5 {[%clk 0:02:37]} 18. Qh5 {[%clk 0:02:26]}  g6 {[%clk 0:02:36]} 19. Qh6 {[%clk 0:02:26]}  f5 {[%clk 0:02:13]} 20. h4 {[%clk 0:02:22]}  Qe7 {[%clk 0:02:10]} 21. h5 {[%clk 0:02:17]}  Rc6 {[%clk 0:02:00]} 22. hxg6 {[%clk 0:02:16]}  fxg6 {[%clk 0:01:57]} 23. Be2 {[%clk 0:02:08]}  Rdc8 {[%clk 0:01:42]} 24. Nd3 {[%clk 0:01:59]}  Rxc3 {[%clk 0:01:33]} 25. Rxc3 {[%clk 0:02:00]}  Rxc3 {[%clk 0:01:34]} 26. Ne5 {[%clk 0:02:00]}  Nc4 {[%clk 0:01:32]} 27. Bxc4 {[%clk 0:01:59]}  dxc4 {[%clk 0:01:32]} 28. a4 {[%clk 0:01:56]}  Rb3 {[%clk 0:01:30]} 29. Rc1 {[%clk 0:01:48]}  bxa4 {[%clk 0:01:26]} 30. Nxc4 {[%clk 0:01:48]}  a3 {[%clk 0:01:20]} 31. Na5 {[%clk 0:01:28]}  Rb8 {[%clk 0:01:14]} 32. Nc6 {[%clk 0:01:23]}  Qc7 {[%clk 0:01:07]} 33. Qg5 {[%clk 0:01:22]}  Kg7 {[%clk 0:00:55]} 34. e4 {[%clk 0:01:20]}  a2 {[%clk 0:00:51]} 35. Nxb8 {[%clk 0:01:20]}  Qxb8 {[%clk 0:00:47]} 36. exf5 {[%clk 0:01:10]}  Bxf5 {[%clk 0:00:46]} 37. Qe3 {[%clk 0:01:07]}  Qb1 {[%clk 0:00:36]} 38. Qc3 {[%clk 0:01:01]}  Bc2 {[%clk 0:00:20]} 39. d5+ {[%clk 0:00:47]}  Kh6 {[%clk 0:00:19]} 40. Qe3+ {[%clk 0:00:42]}  Kg7 {[%clk 0:00:19]} 41. Qe7+ {[%clk 0:00:41]}  Kh6 {[%clk 0:00:19]} 42. Qh4+ {[%clk 0:00:35]}  Kg7 {[%clk 0:00:20]} 43. Qe7+ {[%clk 0:00:33]}  Kh6 {[%clk 0:00:20]} 44. Qh4+ {[%clk 0:00:19]}  Kg7 {[%clk 0:00:20]} 45. Qe7+ {[%clk 0:00:20]} 1/2-1/2


[Site "https://www.chess.com"]

[Event "Titled Tuesday Blitz November 14 Early 2023"]
[White "Timerkhanov, Alexander"]
[Black "Manon-og, Ramon Jr."]
[WhiteFideId "24177938"]
[BlackFideId "5200776"]
[WhiteElo "2683"]
[BlackElo "2358"]
[Result "1-0"]
[Round "1"]
[TimeControl "180+1"]
[Date "2023.11.14"]
[WhiteClock "0:00:33"]
[BlackClock "0:00:03"]
[Board "144"]

1. d4 {[%clk 0:03:00]}  Nf6 {[%clk 0:02:58]} 2. Bg5 {[%clk 0:03:01]}  e6 {[%clk 0:02:58]} 3. Nd2 {[%clk 0:03:01]}  d5 {[%clk 0:02:58]} 4. e3 {[%clk 0:03:01]}  Be7 {[%clk 0:02:58]} 5. Bd3 {[%clk 0:03:00]}  O-O {[%clk 0:02:58]} 6. f4 {[%clk 0:03:00]}  c5 {[%clk 0:02:56]} 7. c3 {[%clk 0:03:00]}  Nc6 {[%clk 0:02:54]} 8. Ngf3 {[%clk 0:03:00]}  Qc7 {[%clk 0:02:53]} 9. O-O {[%clk 0:02:54]}  h6 {[%clk 0:02:52]} 10. Bxf6 {[%clk 0:02:54]}  Bxf6 {[%clk 0:02:52]} 11. Ne5 {[%clk 0:02:52]}  b6 {[%clk 0:02:39]} 12. Qh5 {[%clk 0:02:44]}  Ne7 {[%clk 0:02:20]} 13. g4 {[%clk 0:02:38]}  Bxe5 {[%clk 0:01:42]} 14. fxe5 {[%clk 0:02:37]}  Bd7 {[%clk 0:01:18]} 15. g5 {[%clk 0:02:33]}  Nf5 {[%clk 0:01:15]} 16. Bxf5 {[%clk 0:02:17]}  exf5 {[%clk 0:01:16]} 17. Nf3 {[%clk 0:01:49]}  Qc6 {[%clk 0:01:06]} 18. gxh6 {[%clk 0:01:49]}  Qxh6 {[%clk 0:00:32]} 19. Qxh6 {[%clk 0:01:47]}  gxh6 {[%clk 0:00:33]} 20. Nh4 {[%clk 0:01:46]}  Kh7 {[%clk 0:00:33]} 21. Nxf5 {[%clk 0:01:38]}  Rg8+ {[%clk 0:00:34]} 22. Ng3 {[%clk 0:01:35]}  Be6 {[%clk 0:00:33]} 23. Rf4 {[%clk 0:01:32]}  Rg6 {[%clk 0:00:32]} 24. a4 {[%clk 0:01:19]}  cxd4 {[%clk 0:00:29]} 25. exd4 {[%clk 0:01:17]}  a6 {[%clk 0:00:30]} 26. Raf1 {[%clk 0:01:07]}  Rc8 {[%clk 0:00:29]} 27. Kf2 {[%clk 0:00:59]}  Rc4 {[%clk 0:00:28]} 28. Ra1 {[%clk 0:00:59]}  Rg4 {[%clk 0:00:26]} 29. Rxg4 {[%clk 0:00:57]}  Bxg4 {[%clk 0:00:27]} 30. Nf1 {[%clk 0:00:56]}  Bd7 {[%clk 0:00:26]} 31. a5 {[%clk 0:00:56]}  b5 {[%clk 0:00:25]} 32. Ne3 {[%clk 0:00:56]}  Rc6 {[%clk 0:00:12]} 33. Nxd5 {[%clk 0:00:56]}  Kg7 {[%clk 0:00:11]} 34. Nb4 {[%clk 0:00:54]}  Rg6 {[%clk 0:00:11]} 35. Rg1 {[%clk 0:00:54]}  Bc8 {[%clk 0:00:11]} 36. Rxg6+ {[%clk 0:00:44]}  Kxg6 {[%clk 0:00:12]} 37. Ke3 {[%clk 0:00:43]}  Kf5 {[%clk 0:00:13]} 38. Nd3 {[%clk 0:00:41]}  Kg4 {[%clk 0:00:11]} 39. d5 {[%clk 0:00:38]}  Kh3 {[%clk 0:00:10]} 40. Nc5 {[%clk 0:00:35]}  Kxh2 {[%clk 0:00:10]} 41. Kf2 {[%clk 0:00:34]}  Kh3 {[%clk 0:00:10]} 42. d6 {[%clk 0:00:35]}  Kg4 {[%clk 0:00:09]} 43. d7 {[%clk 0:00:35]}  Bxd7 {[%clk 0:00:09]} 44. Nxd7 {[%clk 0:00:36]}  Kf5 {[%clk 0:00:10]} 45. Nc5 {[%clk 0:00:36]}  Kxe5 {[%clk 0:00:10]} 46. Nxa6 {[%clk 0:00:37]}  Kd5 {[%clk 0:00:08]} 47. Nb4+ {[%clk 0:00:33]}  Kc5 {[%clk 0:00:08]} 48. Nd3+ {[%clk 0:00:32]}  Kc6 {[%clk 0:00:03]} 49. Ne5+ {[%clk 0:00:33]} 1-0


[Site "https://www.chess.com"]

[Event "Titled Tuesday Blitz November 14 Early 2023"]
[White "Luxama, Jacques Muller"]
[Black "Mladenovic, Stefan"]
[WhiteFideId "11900113"]
[BlackFideId "942227"]
[WhiteElo "2358"]
[BlackElo "2683"]
[Result "0-1"]
[Round "1"]
[TimeControl "180+1"]
[Date "2023.11.14"]
[WhiteClock "0:02:14"]
[BlackClock "0:02:38"]
[Board "145"]

1. e4 {[%clk 0:03:00]}  c5 {[%clk 0:02:58]} 2. Nf3 {[%clk 0:02:59]}  d6 {[%clk 0:02:58]} 3. d4 {[%clk 0:02:54]}  cxd4 {[%clk 0:02:59]} 4. Nxd4 {[%clk 0:02:53]}  Nf6 {[%clk 0:02:59]} 5. Nc3 {[%clk 0:02:46]}  g6 {[%clk 0:02:59]} 6. Bc4 {[%clk 0:02:45]}  Bg7 {[%clk 0:02:59]} 7. Bb3 {[%clk 0:02:42]}  O-O {[%clk 0:02:59]} 8. f3 {[%clk 0:02:42]}  Nc6 {[%clk 0:03:00]} 9. Be3 {[%clk 0:02:42]}  Bd7 {[%clk 0:03:00]} 10. Qd2 {[%clk 0:02:42]}  Na5 {[%clk 0:03:00]} 11. O-O-O {[%clk 0:02:41]}  Rb8 {[%clk 0:03:00]} 12. Kb1 {[%clk 0:02:41]}  b5 {[%clk 0:03:00]} 13. h4 {[%clk 0:02:38]}  Nc4 {[%clk 0:03:00]} 14. Qe2 {[%clk 0:02:33]}  Nxe3 {[%clk 0:02:44]} 15. Qxe3 {[%clk 0:02:33]}  a5 {[%clk 0:02:44]} 16. a3 {[%clk 0:02:30]}  a4 {[%clk 0:02:42]} 17. Ba2 {[%clk 0:02:30]}  b4 {[%clk 0:02:42]} 18. axb4 {[%clk 0:02:30]}  Rxb4 {[%clk 0:02:43]} 19. Ka1 {[%clk 0:02:26]}  Qb6 {[%clk 0:02:40]} 20. Rb1 {[%clk 0:02:14]}  Qxd4 {[%clk 0:02:38]} 0-1


[Site "https://www.chess.com"]